lending/lending_fUSD_20251107
["ID","MTS","AMOUNT","RATE_DAILY","PERIOD"]
[393377977,1762549841057,-154.14367874,0.000179,2]
[393377978,1762549841066,-150.0,0.00017904,2]
[393377979,1762549841076,-150.0,0.00017905,2]
[393377980,1762549841087,-1000.0,0.00017908,2]
[393377981,1762549841097,-150.0,0.00017916,2]
[393377982,1762549841107,-150.0,0.00017918,2]
[393377983,1762549841117,-1000.0,0.00017921,2]
[393377984,1762549841126,-1000.0,0.00017921,2]
[393377985,1762549841135,-1000.0,0.00017925,2]
[393377986,1762549841145,-454.08881601,0.00017925,2]
[393377987,1762549841154,-150.0,0.00017926,2]
[393377988,1762549841163,-150.0,0.00017929,2]
[393377989,1762549841173,-150.0,0.00017932,2]
[393377990,1762549841183,-150.0,0.00017932,2]
[393377991,1762549841192,-1000.0,0.00017934,2]
[393377992,1762549841201,-1000.0,0.00017935,2]
[393377993,1762549841211,-1000.0,0.00017936,2]
[393377994,1762549841220,-300.0,0.00017936,2]
[393377995,1762549841229,-150.0,0.00017937,2]
[393377996,1762549841240,-150.0,0.00017938,2]
[393377997,1762549841252,-1000.0,0.00017944,2]
[393377998,1762549841261,-300.0,0.00017944,2]
[393377999,1762549841270,-1000.0,0.00017947,2]
[393378000,1762549841281,-150.0,0.00017949,2]
[393378001,1762549841290,-150.0,0.0001795,2]
[393378002,1762549841299,-1000.0,0.0001795,2]
[393378003,1762549841309,-1000.0,0.0001796,2]
[393378004,1762549841320,-150.0,0.00017963,2]
[393378005,1762549841330,-150.0,0.00017964,2]
[393378006,1762549841339,-1000.0,0.00017966,2]
[393378007,1762549841348,-1000.0,0.00017972,2]
[393378008,1762549841357,-504.93289345,0.00017973,2]
[393378009,1762549841367,-500.0,0.00017973,2]
[393378010,1762549841376,-161.17429234,0.00017973,2]
[393378011,1762549841385,-500.0,0.00017973,2]
[393378012,1762549841395,-426.53701258,0.00017973,2]
[393378013,1762549841404,-500.0,0.00017973,2]
[393378014,1762549841415,-159.99826602,0.00017973,2]
[393378015,1762549841424,-500.0,0.00017973,2]
[393378016,1762549841433,-500.28450458,0.00017973,2]
[393378017,1762549841442,-500.0,0.00017973,2]
[393378018,1762549841452,-500.20326054,0.00017973,2]
[393378019,1762549841461,-500.0,0.00017973,2]
[393378020,1762549841471,-500.0,0.00017973,2]
[393378021,1762549841480,-461.39396557,0.00017973,2]
[393378022,1762549841490,-503.38998104,0.00017973,2]
[393378023,1762549841500,-500.34822502,0.00017973,2]
[393378024,1762549841520,-160.00494127,0.00017973,2]
[393378025,1762549841530,-330.87391277,0.00017973,2]
[393378026,1762549841544,-500.50074512,0.00017973,2]
[393378027,1762549841555,-500.0,0.00017973,2]
[393378028,1762549841565,-500.0,0.00017973,2]
[393378029,1762549841574,-155.22989953,0.00017973,2]
[393378030,1762549841584,-500.0,0.00017973,2]
[393378031,1762549841594,-216.20372532,0.00017973,2]
[393378032,1762549841603,-500.0,0.00017973,2]
[393378033,1762549841613,-500.0,0.00017973,2]
[393378034,1762549841844,-160.71773468,0.00017973,2]
[393378035,1762549841855,-500.0,0.00017973,2]
[393378036,1762549841864,-500.0,0.00017973,2]
[393378037,1762549841873,-500.13599134,0.00017973,2]
[393378038,1762549841884,-500.0,0.00017973,2]
[393378039,1762549841895,-500.0,0.00017973,2]
[393378040,1762549841904,-500.0,0.00017973,2]
[393378041,1762549841914,-500.0,0.00017973,2]
[393378042,1762549841923,-500.0,0.00017973,2]
[393378043,1762549841932,-500.0,0.00017973,2]
[393378044,1762549841941,-500.0,0.00017973,2]
[393378045,1762549841951,-500.0,0.00017973,2]
[393378046,1762549841960,-500.0,0.00017973,2]
[393378047,1762549841969,-500.0,0.00017973,2]
[393378048,1762549841980,-165.77547705,0.00017973,2]
[393378049,1762549841990,-500.0,0.00017973,2]
[393378050,1762549841999,-167.36405018,0.00017973,2]
[393378051,1762549842012,-500.0,0.00017973,2]
[393378052,1762549842021,-500.0,0.00017973,2]
[393378053,1762549842031,-501.21360688,0.00017973,2]
[393378054,1762549842040,-205.92818258,0.00017973,2]
[393378055,1762549842049,-280.33323234,0.00017973,2]
[393378056,1762549842060,-500.0,0.00017973,2]
[393378057,1762549842070,-500.0,0.00017973,2]
[393378058,1762549842079,-500.0,0.00017973,2]
[393378059,1762549842089,-321.53200453,0.00017973,2]
[393378060,1762549842098,-159.74,0.00017973,2]
[393378061,1762549842108,-1000.0,0.00017974,2]
[393378062,1762549842118,-162.39887529,0.00017975,2]
[393378063,1762549842127,-1000.0,0.00017977,2]
[393378064,1762549842137,-1000.0,0.00017978,2]
[393378065,1762549842147,-1000.0,0.00017981,2]
[393378066,1762549842157,-300.0,0.00017986,2]
[393378067,1762549842167,-150.0,0.0001799,2]
[393378068,1762549842176,-300.0,0.0001799,2]
[393378069,1762549842186,-169.5094317,0.0001799,2]
[393378070,1762549842196,-169.5094317,0.0001799,2]
[393378071,1762549842208,-169.5094317,0.0001799,2]
[393378072,1762549842218,-151.0,0.00017997,2]
[393378073,1762549842228,-300.0,0.00017999,2]
[393378074,1762549842239,-500.0,0.00017999,2]
[393378075,1762549842254,-150.0,0.00017999,2]
[393378076,1762549842264,-500.0,0.00017999,2]
[393378077,1762549842274,-238.31815393,0.00017999,2]
[393378078,1762549842284,-300.0,0.00017999,2]
[393378079,1762549842297,-150.0,0.00017999,2]
[393378080,1762549842308,-500.0,0.00017999,2]
[393378081,1762549842322,-150.0,0.00017999,2]
[393378082,1762549842333,-500.0,0.00017999,2]
[393378083,1762549842343,-500.0,0.00017999,2]
[393378084,1762549842354,-500.0,0.00017999,2]
[393378085,1762549842364,-500.0,0.00017999,2]
[393378086,1762549842374,-500.0,0.00017999,2]
[393378087,1762549842384,-500.0,0.00017999,2]
[393378088,1762549842393,-500.0,0.00017999,2]
[393378089,1762549842403,-500.0,0.00017999,2]
[393378090,1762549842414,-500.0,0.00017999,2]
[393378091,1762549842426,-590.9677229,0.00017999,2]
[393378092,1762549842436,-150.0,0.00017999,2]
[393378093,1762549842446,-150.0,0.00017999,2]
[393378094,1762549842455,-200.0,0.00017999,2]
[393378095,1762549842465,-150.0,0.00017999,2]
[393378096,1762549842475,-150.0,0.00017999,2]
[393378097,1762549842484,-150.0,0.00017999,2]
[393378098,1762549842494,-150.0,0.00017999,2]
[393378099,1762549842504,-225.8041782,0.00017999,2]
[393378100,1762549842514,-500.0,0.00017999,2]
[393378101,1762549842525,-234.93533691,0.00017999,2]
[393378102,1762549842535,-381.17441209,0.00017999,2]
[393378103,1762549842548,-5782170.40334099,0.00018,2]
[393378104,1762549842568,-1297.73690767,0.00018,2]
[393378105,1762549842579,-2680.03147915,0.00018,2]
[393378106,1762549842592,-335.48264998,0.00018,2]
[393378107,1762549842603,-408.28147501,0.00018,2]
[393378108,1762549842615,-353.04009473,0.00018,2]
[393378109,1762549842630,-2555.66780378,0.00018,2]
[393378112,1762549843338,-250.39895645,0.00017686,2]
[393378113,1762549843348,-489.21439031,0.00017833,2]
[393378114,1762549843366,-1210.32413324,0.00018,2]
[393378115,1762549843392,-1802.99051665,0.00018,2]
[393378116,1762549843407,-1095382.26850531,0.00018,2]
[393378117,1762549843419,-317.7956172,0.00018,2]
[393378119,1762549846416,-427.57993441,0.00018,2]
[393378120,1762549846427,-639.22380711,0.00018,2]
[393378121,1762549846471,-489.21439031,0.00017867,2]
[393378122,1762549846480,-19954.94141375,0.00018,2]
[393378261,1762550235426,-151.00466367,0.00017039,3]
[393378262,1762550236965,-156.315875,0.00017039,3]
[393378263,1762550239890,-162.18,0.00017039,3]
[393378264,1762550245351,-181.504125,0.00017039,3]
[393378266,1762550513272,438.21,0.00013699,2]
[393378267,1762550670885,-804.66,0.00016438,2]
[393378371,1762551032264,-250.0,0.00016569,2]
[393378372,1762551032275,-347.51,0.00016679,2]
[393378373,1762551032286,-250.0,0.00016744,2]
[393378374,1762551032297,-500.0,0.00016939,2]
[393378375,1762551032308,-1200.0,0.00016998,2]
[393378376,1762551032318,-300.0,0.00016999,2]
[393378377,1762551032328,-548.34,0.00017,7]
[393378378,1762551032339,-500.0,0.00017,7]
[393378379,1762551032349,-500.0,0.00017,7]
[393378380,1762551032360,-500.0,0.00017,7]
[393378381,1762551032370,-500.0,0.00017,7]
[393378382,1762551032380,-500.0,0.00017,7]
[393378383,1762551032390,-500.0,0.00017,7]
[393378384,1762551032401,-500.0,0.00017,7]
[393378385,1762551032412,-22.0240288,0.00017,7]
[393378386,1762551032424,-477.9759712,0.00017,7]
[393378387,1762551032437,-500.0,0.00017,7]
[393378388,1762551032448,-500.0,0.00017,7]
[393378389,1762551032458,-622.66,0.00017,7]
[393378390,1762551032470,-347.99533633,0.00017039,3]
[393378391,1762551032480,-224.68232437,0.000171,2]
[393378392,1762551032491,-2300.0,0.000171,6]
[393378393,1762551032502,-4700.0,0.000172,6]
[393378394,1762551032512,-7100.0,0.000173,6]
[393378395,1762551032523,-9500.0,0.000174,6]
[393378396,1762551032533,-196.02,0.00017455,2]
[393378397,1762551032543,-151.24860729,0.000175,2]
[393378398,1762551032554,-1581.63280823,0.000175,2]
[393378399,1762551032564,-151.1408,0.000175,2]
[393378400,1762551032575,-156.49934779,0.000175,2]
[393378401,1762551032585,-6788.04515996,0.000175,6]
[393378402,1762551032608,-5011.95484004,0.000175,6]
[393378403,1762551032622,-1581.63280822,0.00017544,2]
[393378404,1762551032634,-156.49934778,0.00017557,2]
[393378405,1762551032644,-500.1429295,0.00017573,2]
[393378406,1762551032656,-500.0,0.00017573,2]
[393378407,1762551032667,-605.78717603,0.00017573,2]
[393378408,1762551032677,-500.0,0.00017573,2]
[393378409,1762551032688,-500.0,0.00017573,2]
[393378410,1762551032698,-500.0,0.00017573,2]
[393378411,1762551032709,-500.0,0.00017573,2]
[393378412,1762551032720,-1581.63280822,0.00017589,2]
[393378413,1762551032731,-500.0,0.00017599,2]
[393378414,1762551032741,-500.0,0.00017599,2]
[393378415,1762551032752,-500.0,0.00017599,2]
[393378416,1762551032762,-500.0,0.00017599,2]
[393378417,1762551032772,-500.0,0.00017599,2]
[393378418,1762551032783,-204.70622116,0.00017599,2]
[393378419,1762551032793,-154.12324818,0.00017599,2]
[393378420,1762551032802,-500.0,0.00017599,2]
[393378421,1762551032815,-154.12324818,0.00017599,2]
[393378422,1762551032825,-500.0,0.00017599,2]
[393378423,1762551032835,-500.0,0.00017599,2]
[393378424,1762551032845,-154.12324818,0.00017599,2]
[393378425,1762551032855,-500.0,0.00017599,2]
[393378426,1762551032866,-500.0,0.00017599,2]
[393378427,1762551032879,-154.12324818,0.00017599,2]
[393378428,1762551032889,-500.0,0.00017599,2]
[393378429,1762551032899,-248215.59903784,0.000176,2]
[393378431,1762551032911,-701.62574342,0.000176,2]
[393378433,1762551032922,-3709.47584804,0.000176,2]
[393378436,1762551032935,-167373.2993707,0.000176,2]
[393378437,1762551032946,-1000.0,0.000176,2]
[393378438,1762551032956,-2300.0,0.000176,6]
[393378439,1762551032967,-156.49934778,0.00017614,2]
[393378440,1762551032977,-1581.63280822,0.00017633,2]
[393378441,1762551032988,-156.49934778,0.00017671,2]
[393378442,1762551032998,-893.85465609,0.00017673,2]
[393378443,1762551033008,-1581.63280822,0.00017678,2]
[393378444,1762551033018,-500.0,0.00017699,2]
[393378445,1762551033029,-2300.0,0.000177,6]
[393378446,1762551033039,-1000.0,0.000177,2]
[393378447,1762551033049,-341.0,0.00017701,2]
[393378448,1762551033059,-1581.63280822,0.00017722,2]
[393378449,1762551033069,-427.13,0.00017726,2]
[393378450,1762551033079,-156.49934778,0.00017729,2]
[393378451,1762551033088,-5000.0,0.0001773,2]
[393378452,1762551033098,-300.0,0.00017731,2]
[393378453,1762551033108,-1000.0,0.00017749,2]
[393378454,1762551033118,-300.0,0.00017753,2]
[393378455,1762551033128,-221.84453216,0.00017755,2]
[393378456,1762551033138,-300.0,0.00017766,2]
[393378457,1762551033148,-1581.63280822,0.00017767,2]
[393378458,1762551033157,-300.0,0.0001777,2]
[393378459,1762551033167,-192.59474214,0.00017773,2]
[393378460,1762551033176,-300.0,0.00017773,2]
[393378461,1762551033186,-300.0,0.00017784,2]
[393378462,1762551033196,-156.49934778,0.00017786,2]
[393378463,1762551033206,-300.0,0.00017793,2]
[393378464,1762551033217,-1815.0,0.000178,2]
[393378465,1762551033227,-2300.0,0.000178,6]
[393378466,1762551033238,-1581.63280822,0.00017811,2]
[393378467,1762551033248,-300.0,0.00017817,2]
[393378468,1762551033259,-150.0,0.00017821,2]
[393378469,1762551033269,-500.0,0.00017829,2]
[393378470,1762551033278,-500.0,0.00017829,2]
[393378471,1762551033289,-9615.96181034,0.0001783,2]
[393378472,1762551033314,-9862.17137486,0.0001783,2]
[393378473,1762551033326,-343.578,0.0001783,2]
[393378474,1762551033351,-289.96440231,0.0001783,2]
[393378475,1762551033363,-11197.49070691,0.0001783,2]
[393378476,1762551033380,-1189.407222,0.0001783,2]
[393378480,1762551038173,-531.60145845,0.000175,2]
[393378481,1762551038183,-500.0,0.00017599,2]
[393378482,1762551038193,-79.30834155,0.0001783,2]
[393378483,1762551038227,-260.4852275,0.0001783,2]
[393378484,1762551038284,-7851.26138464,0.0001783,2]
[393378485,1762551038296,-2524.94000031,0.0001783,2]
[393378486,1762551038307,-26930.95275288,0.0001783,2]
[393378487,1762551038317,-300.0,0.00017841,2]
[393378488,1762551038326,-156.49934778,0.00017843,2]
[393378489,1762551038336,-341.0,0.00017846,2]
[393378490,1762551038345,-300.0,0.00017846,2]
[393378491,1762551038355,-300.0,0.00017848,2]
[393378492,1762551038364,-500.0,0.00017855,2]
[393378493,1762551038374,-1581.63280822,0.00017856,2]
[393378494,1762551038383,-2000.0,0.00017856,2]
[393378495,1762551038392,-500.0,0.00017856,2]
[393378496,1762551038402,-500.0,0.00017856,2]
[393378497,1762551038411,-200.0,0.00017856,2]
[393378498,1762551038421,-187.95454035,0.00017867,2]
[393378499,1762551038430,-300.0,0.00017873,2]
[393378500,1762551038440,-300.0,0.00017876,2]
[393378501,1762551038449,-191.87361442,0.00017886,2]
[393378506,1762551040154,-108.12638558,0.00017886,2]
[393378507,1762551040163,-300.0,0.00017888,2]
[393378508,1762551040172,-103.74413401,0.00017893,2]
[393378509,1762551040182,-46.25586599,0.00017893,2]
[393378510,1762551040191,-170.07527492,0.000179,2]
[393378511,1762551040200,-327.35534592,0.000179,2]
[393378512,1762551040215,-781.03318018,0.000179,2]
[393378513,1762551040325,-531.6014584,0.00017544,2]
[393378514,1762551040335,-498.07180909,0.000179,2]
[393378515,1762551040344,-689.72524371,0.000179,6]
[393378516,1762551040384,-1610.27475629,0.000179,6]
[393378517,1762551040394,-151.24860729,0.000179,2]
[393378518,1762551040403,-2516.87706244,0.000179,2]
[393378519,1762551040414,-1574.2229145,0.000179,2]
[393378520,1762551040498,-1415.11805272,0.000179,2]
[393378521,1762551040508,-238.3068744,0.000179,2]
[393378522,1762551040517,-1581.63280822,0.000179,2]
[393378523,1762551040526,-156.49934778,0.000179,2]
[393378524,1762551040536,-168.0,0.00017909,2]
[393378525,1762551040545,-300.0,0.00017913,2]
[393378526,1762551040555,-300.0,0.00017921,2]
[393378528,1762551040564,-300.0,0.00017921,2]
[393378530,1762551040573,-300.0,0.00017921,2]
[393378532,1762551040582,-300.0,0.00017923,2]
[393378534,1762551040592,-300.0,0.00017925,2]
[393378536,1762551040601,-1000.0,0.00017941,2]
[393378538,1762551040615,-300.0,0.0001795,2]
[393378540,1762551040624,-300.0,0.00017955,2]
[393378542,1762551040633,-1279.62643628,0.0001797,2]
[393378544,1762551040642,-1043.0,0.00017973,2]
[393378546,1762551040652,-500.0,0.00017973,2]
[393378548,1762551040661,-500.0,0.00017973,2]
[393378550,1762551040671,-500.0,0.00017973,2]
[393378551,1762551040680,-500.0,0.00017973,2]
[393378554,1762551040689,-523.28813602,0.00017973,2]
[393378556,1762551040699,-440.46876719,0.00017973,2]
[393378558,1762551040708,-500.0,0.00017973,2]
[393378560,1762551040717,-500.0,0.00017973,2]
[393378562,1762551040727,-492.63712394,0.00017973,2]
[393378564,1762551040737,-506.01385206,0.00017973,2]
[393378565,1762551040746,-500.0,0.00017973,2]
[393378567,1762551040756,-174.24165734,0.00017973,2]
[393378568,1762551040765,-528.96023133,0.00017973,2]
[393378569,1762551040774,-500.0,0.00017973,2]
[393378570,1762551040783,-500.0,0.00017973,2]
[393378571,1762551040793,-500.0,0.00017973,2]
[393378572,1762551040803,-500.0,0.00017973,2]
[393378573,1762551040812,-500.0,0.00017973,2]
[393378574,1762551040821,-500.0,0.00017973,2]
[393378575,1762551040831,-500.0,0.00017973,2]
[393378576,1762551040840,-500.0,0.00017973,2]
[393378577,1762551040849,-500.0,0.00017973,2]
[393378578,1762551040858,-500.0,0.00017973,2]
[393378579,1762551040867,-500.0,0.00017973,2]
[393378580,1762551040877,-182.67859503,0.00017973,2]
[393378581,1762551040886,-500.0,0.00017973,2]
[393378582,1762551040895,-219.01,0.00017973,2]
[393378583,1762551040905,-300.0,0.00017977,2]
[393378584,1762551040914,-500.0,0.00017982,2]
[393378585,1762551040923,-162.43587804,0.00017988,2]
[393378586,1762551040932,-39044.01304636,0.00017988,2]
[393378587,1762551040942,-281.77206103,0.0001799,2]
[393378588,1762551040952,-281.77206103,0.0001799,2]
[393378589,1762551040961,-281.77206103,0.0001799,2]
[393378590,1762551040971,-500.0,0.00017999,2]
[393378591,1762551040981,-500.0,0.00017999,2]
[393378592,1762551040990,-150.0,0.00017999,2]
[393378593,1762551040999,-150.0,0.00017999,2]
[393378594,1762551041008,-158.86102011,0.00017999,2]
[393378595,1762551041017,-300.0,0.00017999,2]
[393378596,1762551041027,-666.0,0.00017999,2]
[393378597,1762551041038,-150.0,0.00017999,2]
[393378598,1762551041047,-150.0,0.00017999,2]
[393378599,1762551041057,-500.0,0.00017999,2]
[393378600,1762551041066,-500.0,0.00017999,2]
[393378601,1762551041075,-500.0,0.00017999,2]
[393378602,1762551041085,-500.0,0.00017999,2]
[393378603,1762551041094,-500.0,0.00017999,2]
[393378604,1762551041103,-500.0,0.00017999,2]
[393378605,1762551041114,-500.0,0.00017999,2]
[393378606,1762551041124,-500.0,0.00017999,2]
[393378607,1762551041133,-500.0,0.00017999,2]
[393378608,1762551041142,-500.0,0.00017999,2]
[393378609,1762551041152,-446.22175089,0.00017999,2]
[393378610,1762551041161,-442.0,0.00017999,2]
[393378611,1762551041170,-500.0,0.00017999,2]
[393378612,1762551041179,-500.0,0.00017999,2]
[393378613,1762551041188,-500.0,0.00017999,2]
[393378614,1762551041197,-500.0,0.00017999,2]
[393378615,1762551041206,-500.0,0.00017999,2]
[393378616,1762551041216,-500.0,0.00017999,2]
[393378617,1762551041226,-500.0,0.00017999,2]
[393378618,1762551041236,-500.0,0.00017999,2]
[393378619,1762551041244,-500.0,0.00017999,2]
[393378620,1762551041253,-500.0,0.00017999,2]
[393378621,1762551041262,-500.0,0.00017999,2]
[393378622,1762551041271,-500.0,0.00017999,2]
[393378623,1762551041280,-500.0,0.00017999,2]
[393378624,1762551041290,-500.0,0.00017999,2]
[393378625,1762551041299,-500.0,0.00017999,2]
[393378626,1762551041308,-500.0,0.00017999,2]
[393378627,1762551041319,-500.0,0.00017999,2]
[393378628,1762551041328,-500.0,0.00017999,2]
[393378629,1762551041338,-169.02275705,0.00017999,2]
[393378630,1762551041346,-616.82208846,0.00017999,2]
[393378631,1762551041356,-158.06292474,0.00017999,2]
[393378632,1762551041365,-164.45473584,0.00017999,2]
[393378633,1762551041374,-3401.01905987,0.00018,2]
[393378634,1762551041388,-7337.80008578,0.00018,2]
[393378645,1762551043268,-543.08966467,0.00018,2]
[393378646,1762551043315,-368.8,0.00018,2]
[393378677,1762551046430,-531.6014584,0.00017589,2]
[393378678,1762551046440,-483.35929902,0.00018,2]
[393378679,1762551046452,-1280.3099978,0.00018,2]
[393378680,1762551046493,-517.7834796,0.00018,2]
[393378681,1762551046553,-7584.66418199,0.00018,2]
[393378682,1762551046670,-225624.65954564,0.00018,2]
[393378703,1762551582706,150.0,0.00014999,2]
[393378704,1762551838523,17106.7377424,0.000178,120]
[393378705,1762551838574,25453.66463456,0.000178,120]
[393378706,1762552052157,-427.33,0.00016479,2]
[393378707,1762552082415,-200.0,0.00016475,2]
[393378708,1762552105452,428.08,8.419e-05,2]
[393378709,1762552105650,428.08,8.844e-05,2]
[393378710,1762552105853,428.08,9.27e-05,2]
[393378711,1762552106096,428.08,9.696e-05,2]
[393378712,1762552106311,428.08,0.00010121,2]
[393378713,1762552106773,428.08,0.00010547,2]
[393378714,1762552106810,428.08,0.00010973,2]
[393378715,1762552106969,428.08,0.00011398,2]
[393378716,1762552107170,428.08,0.00011824,2]
[393378717,1762552107393,428.08,0.0001225,2]
[393378718,1762552107615,428.08,0.00012676,2]
[393378719,1762552107816,428.08,0.00013101,2]
[393378720,1762552108019,428.08,0.00013527,2]
[393378721,1762552108239,428.08,0.00013953,2]
[393378722,1762552108443,428.08,0.00014378,2]
[393378723,1762552108662,428.08,0.00014804,2]
[393378724,1762552110573,-307.0173961,0.0001523,2]
[393378733,1762552232984,-121.0626039,0.0001523,2]
[393378734,1762552232998,-428.08,0.00015655,2]
[393378735,1762552233010,-428.08,0.00016081,2]
[393378736,1762552233021,-428.08,0.00016507,2]
[393378737,1762552233031,-189.73333036,0.00016553,2]
[393378738,1762552233043,-1000.0,0.00016647,2]
[393378739,1762552233055,-300.0,0.00016653,2]
[393378740,1762552233066,-200.0,0.00016658,2]
[393378741,1762552233078,-300.0,0.00016684,2]
[393378742,1762552233089,-195.0,0.00016753,2]
[393378743,1762552233100,-300.0,0.00016753,2]
[393378744,1762552233112,-219.96560835,0.00016755,2]
[393378745,1762552233123,-1200.0,0.00016998,2]
[393378746,1762552233134,-300.0,0.00016999,2]
[393378747,1762552233145,-300.0,0.00016999,2]
[393378748,1762552233156,-250.0,0.00017,2]
[393378749,1762552233166,-765.99026,0.00017,2]
[393378750,1762552233177,-500.0,0.00017,2]
[393378751,1762552233187,-321.19645487,0.00017,2]
[393378752,1762552233198,-500.0,0.00017,5]
[393378753,1762552233208,-172.75,0.00017059,2]
[393378754,1762552233220,-403.1,0.00017093,2]
[393378755,1762552233230,-539.24100228,0.000174,2]
[393378756,1762552233241,-1585.52718818,0.000174,2]
[393378757,1762552233252,-7434.1585,0.000174,2]
[393378758,1762552233262,-180.1004919,0.000174,2]
[393378759,1762552233274,-539.24100223,0.00017456,2]
[393378760,1762552233285,-1585.52718812,0.00017456,2]
[393378761,1762552233295,-168.0,0.00017481,2]
[393378762,1762552233306,-300.52291346,0.00017499,2]
[393378763,1762552233317,-180.12932523,0.00017499,2]
[393378764,1762552233328,-344.52002883,0.00017499,2]
[393378765,1762552233339,-296985.80863484,0.000175,2]
[393378766,1762552233352,-39916.50992649,0.000175,2]
[393378767,1762552233369,-593.68559843,0.000175,2]
[393378768,1762552233382,-378.31500004,0.000175,2]
[393378769,1762552233403,-25897.5,0.000175,2]
[393378770,1762552233415,-1632.75253932,0.000175,2]
[393378774,1762552239026,-4773.91327544,0.000175,2]
[393378775,1762552239088,-573.66408346,0.000175,2]
[393378776,1762552239261,-7299.75575035,0.000175,2]
[393378777,1762552239273,-2565.58378454,0.000175,2]
[393378781,1762552240556,-351.78799988,0.000175,2]
[393378782,1762552240645,-7294.60302042,0.000175,2]
[393378789,1762552246833,-582.0582955,0.000175,2]
[393378791,1762552246845,-12485.71731665,0.000175,2]
[393378804,1762553042413,150.0,0.00016624,120]
[393378818,1762553341368,416.29,0.00013699,2]
[393378825,1762553431524,-250.0,0.000164,2]
[393378826,1762553431534,-166.20303398,0.0001656,2]
[393378827,1762553431546,-7.54696602,0.0001656,2]
[393378828,1762553431556,-150.0,0.00016624,2]
[393378829,1762553431565,-250.0,0.00016624,2]
[393378830,1762553431574,-42.45303398,0.00016624,2]
[393378831,1762553431592,-279.02674845,0.00016624,2]
[393378832,1762553431602,-500.0,0.00016624,2]
[393378833,1762553431611,-500.0,0.00016624,2]
[393378834,1762553431620,-195.95978101,0.00016648,2]
[393378835,1762553431629,-1500.0,0.00016651,2]
[393378836,1762553431639,-200.0,0.00016746,2]
[393378837,1762553431649,-500.0,0.00016746,2]
[393378838,1762553431659,-999.0,0.00016755,3]
[393378839,1762553431669,-454.0,0.00016876,2]
[393378840,1762553431678,-1200.0,0.00016983,2]
[393378841,1762553431687,-300.0,0.00016984,2]
[393378842,1762553431696,-300.0,0.00016984,2]
[393378843,1762553431706,-300.0,0.00016984,2]
[393378844,1762553431715,-8912.55,0.00016986,2]
[393378845,1762553431723,-250.0,0.00017,2]
[393378846,1762553431732,-454.0,0.00017007,2]
[393378847,1762553431742,-168.0,0.00017085,2]
[393378848,1762553431751,-221.84453216,0.000171,2]
[393378849,1762553431759,-3900.0,0.000171,6]
[393378850,1762553431768,-893.85465609,0.00017133,2]
[393378851,1762553431777,-168.0,0.00017185,2]
[393378852,1762553431786,-157.3,0.000172,2]
[393378853,1762553431795,-7800.0,0.000172,6]
[393378854,1762553431804,-212.6,0.00017261,2]
[393378855,1762553431813,-168.0,0.00017282,2]
[393378856,1762553431822,-11700.0,0.000173,6]
[393378857,1762553431832,-168.0,0.00017327,2]
[393378858,1762553431841,-7000.0,0.0001733,2]
[393378859,1762553431850,-488.0,0.00017339,2]
[393378860,1762553431859,-178.0,0.00017399,2]
[393378861,1762553431868,-647.04479826,0.000174,2]
[393378862,1762553431877,-677.92831288,0.000174,2]
[393378863,1762553431887,-15600.0,0.000174,6]
[393378864,1762553431900,-488.0,0.00017423,2]